Cogmind - Beta 15 @@@ ROGUE MODE // 2025.08.29 @ 21:21:49 Player: Petvaria Result: Self-destructed Performance ------------- Evolutions (1) 500 Regions Visited (3) 600 Robots Destroyed (66) 330 Value Destroyed (1451) 1451 Prototype IDs (2) 40 Alien Tech Used (0) 0 Bonus (28) 28 TOTAL SCORE: 2949 Bonus ------- High Alert Combat Kills 28 Cogmind --------- Core Integrity 13/400 Matter 174/300 Energy 280/280 System Corruption 0% Temperature Cool (0) Movement Treading (160) Location -9/Materials Parts ------- > --- POWER (1) -------- Cooled Ion Engine > --- PROPULSION (3) --- Light Treads Light Treads Light Treads > --- UTILITY (3) ------ Medium Storage Unit Improved Light Armor Plating Improved Light Armor Plating > --- WEAPON (2) ------- Heavy Assault Rifle > --- INVENTORY (10) --- Light Treads Light Treads Light Treads Light Treads Improved Light Armor Plating Hacking Suite Hacking Suite Small Laser Datajack Maul Peak State ------------ > --- POWER ------------ Heavy Ion Engine > --- PROPULSION ------- Light Treads Light Treads Light Treads > --- UTILITY ---------- Medium Storage Unit Improved Light Armor Plating Improved Light Armor Plating > --- WEAPON ----------- Heavy Assault Rifle Heavy Assault Rifle > --- INVENTORY -------- Cooled Ion Engine Light Treads Light Treads Light Treads Light Treads Light Treads Hacking Suite Small Laser Datajack Maul [Rating: 18] Favorites ----------- Power Ion Engine Engine Ion Engine Power Core Light Nuclear Core Propulsion Light Treads Treads Light Treads Utility Medium Storage Unit Storage Medium Storage Unit Hackware Hacking Suite Protection Weapon Shielding Weapon Heavy Assault Rifle Energy Gun Small Laser Ballistic Gun Heavy Assault Rifle Impact Weapon Maul Build | -11 -10 -10 -9 ------- Run | Yrd Mat Min Mat Slots Evolved 2 | . . . 2 Power . | . . . . Propulsion 1 | . . . 1 Utility 1 | . . . 1 Weapon . | . . . . Parts Attached 34 | 6 1 . 27 Power 4 | 1 . . 3 Engine 3 | 1 . . 2 Core 1 | . . . 1 Reactor . | . . . . Propulsion 14 | 2 . . 12 Treads 14 | 2 . . 12 Leg . | . . . . Wheel . | . . . . Hover . | . . . . Flight . | . . . . Utility 7 | 1 1 . 5 Device . | . . . . Storage 2 | 1 . . 1 Processor . | . . . . Hackware 1 | . . . 1 Protection 4 | . 1 . 3 Artifact . | . . . . Weapon 9 | 2 . . 7 Energy Gun 3 | . . . 3 Energy Cannon . | . . . . Ballistic Gun 5 | 2 . . 3 Ballistic Cannon . | . . . . Launcher . | . . . . Special Weapon . | . . . . Impact Weapon 1 | . . . 1 Slashing Weapon . | . . . . Piercing Weapon . | . . . . Special Melee Weapon . | . . . . Unidentified Prototypes 2 | . . . 2 Parts Lost 9 | . . . 9 Power . | . . . . Propulsion 2 | . . . 2 Utility 3 | . . . 3 Weapon 4 | . . . 4 Highest Loss Streak 6 | . . . 6 To Critical Strikes . | . . . . Average Backups 7 | 2 5 6 9 Power . | . 1 1 . Propulsion 3 | 1 2 2 3 Utility 1 | . . 1 1 Weapon 1 | . 1 1 2 Tool/Special . | . . . . Unused Backups 10 | . . . 10 Power 1 | . . . 1 Propulsion 5 | . . . 5 Utility 3 | . . . 3 Weapon . | . . . . Tool/Special 1 | . . . 1 Average Slot Usage (%) 89 | . 84 100 89 Engine 9 | . 14 14 8 Core 1 | . . . 2 Treads 30 | . 26 28 31 Storage 11 | . 14 14 11 Hackware 2 | . . . 3 Protection 9 | . 1 14 10 Energy Gun 1 | . . . 2 Ballistic Gun 21 | . 27 28 19 Peak Build Rating 18 | 6 7 7 18 Average Rating 10 | 4 6 7 13 On Entrance 5 | . 6 7 7 Naked Turns . | . . . . Heaviest Build 30 | 13 14 14 30 Greatest Support 60 | 40 40 40 60 Greatest Overweight (x) 4 | . 4 . . Average Overweight (x) . | . . . . Largest Inventory Capacity 10 | 8 8 8 10 Average Capacity 9 | 6 8 8 9 Most Carried 10 | 4 8 6 10 Average Carried 7 | 2 5 6 9 Final Capacity 10 | 8 8 8 10 Final Carried 10 | 4 6 6 10 Class Distribution -------------------- 80% | Mutant 19% | Scavenger-Mutant Dominant Class ---------------- Mutant | -10/Materials Mutant | -10/Mines Mutant | -9/Materials Resources | -11 -10 -10 -9 ----------- Run | Yrd Mat Min Mat Matter Collected 1317 | 190 105 92 930 Remotely . | . . . . Salvage Created 2097 | . 105 92 1900 Parts 134 | . 8 1 125 Haulers Intercepted 6 | . . . 6 Recyclers Shooed . | . . . . Parts Field Recycled . | . . . . Retrieved Matter . | . . . . Parts Self-Destructed . | . . . . Prevented . | . . . . Kills | -11 -10 -10 -9 ------- Run | Yrd Mat Min Mat Combat Hostiles Destroyed 44 | . 4 2 38 Guns 44 | . 4 2 38 Classes Destroyed 8 | . 3 . 5 Worker 4 | . . . 4 Hauler 6 | . . . 6 Recycler 1 | . . . 1 Operator 8 | . 1 . 7 Watcher 3 | . . . 3 Swarmer 14 | . 3 . 11 Grunt 26 | . 1 2 23 Sentry 4 | . . . 4 Best Kill Streak 8 | . 3 2 8 Combat Bots Only 4 | . 3 2 4 Max Kills in Single Turn 2 | . 1 1 2 Gunslinging 1 | . . . 1 Exploded . | . . . . Melee . | . . . . Uniques/NPCs Destroyed . | . . . . Combat | -11 -10 -10 -9 -------- Run | Yrd Mat Min Mat Hostile Shots Fired 313 | . 35 11 267 Missed 75 | . 16 2 57 Hits 238 | . 19 9 210 Projectile 238 | . 19 9 210 Critical Strikes 2 | . . . 2 Damage Taken 2640 | . 156 132 2352 Core 437 | . 33 17 387 Absorbed by Shields . | . . . . Redirected to Shielding 50 | . . 13 37 Core Remaining (%) 90 | 100 . 80 . Volleys Fired 183 | . 18 9 156 Largest 2 | . 2 2 2 Hottest 80 | . 40 40 80 Shots Fired 358 | . 36 18 304 Gun 358 | . 36 18 304 Cannon . | . . . . Launcher . | . . . . Special . | . . . . Kinetic 320 | . 36 18 266 Thermal 31 | . . . 31 Explosive . | . . . . Electromagnetic 7 | . . . 7 Robot Hit Streak 18 | . 8 18 11 Robot Miss Streak 5 | . 4 . 5 Penetration Max . | . . . . Secondary Targets 7 | . . . 7 Max Gunslinging Chain 1 | . . . 1 Shots Hit Robots 227 | . 20 18 189 Core Hits 97 | . 8 6 83 Critical Kills 2 | . . . 2 Critical Parts Destroyed 1 | . 1 . . Critical Strikes 3 | . 1 . 2 Destroy 3 | . 1 . 2 Melee Attacks 1 | . . . 1 Impact 1 | . . . 1 Slashing . | . . . . Piercing . | . . . . Sneak Attacks . | . . . . Combat Hostiles . | . . . . Follow-up Attacks . | . . . . Damage Inflicted 3086 | . 205 187 2694 Guns 3086 | . 205 187 2694 Cannons . | . . . . Explosions . | . . . . Melee . | . . . . Ramming . | . . . . Kinetic 2748 | . 205 187 2356 Thermal 258 | . . . 258 Explosive . | . . . . Electromagnetic 80 | . . . 80 Impact . | . . . . Slashing . | . . . . Piercing . | . . . . Highest Corruption . | . . . . Average Corruption . | . . . . Corruption Purged . | . . . . Corruption Blocked . | . . . . Overload Shots . | . . . . Overflow Damage . | . . . . Projectiles . | . . . . Explosions . | . . . . Melee . | . . . . Knockbacks . | . . . . Impact . | . . . . Kinetic . | . . . . Secondary . | . . . . Self-Inflicted Damage . | . . . . Shots . | . . . . Rammed . | . . . . Targets Rammed . | . . . . Kicked . | . . . . Crushed . | . . . . Highest Temperature 126 | . 6 18 126 Average Temperature 40 | . 6 10 42 Received Heat Transfer 951 | . 6 78 867 Siege Activations . | . . . . Martial Activations . | . . . . Shielding Activations . | . . . . Robots Disrupted . | . . . . Combat Hostiles . | . . . . Robots Corrupted . | . . . . Combat Hostiles . | . . . . Parts Fried . | . . . . Impact Corruptions . | . . . . Robots Melted . | . . . . Combat Hostiles . | . . . . Parts Melted . | . . . . Heat Transferred 575 | . . . 575 Parts Sabotaged . | . . . . Parts Stolen . | . . . . Parts Stripped . | . . . . Power Chain Reactions . | . . . . Alert | -11 -10 -10 -9 ------- Run | Yrd Mat Min Mat Maximum Alert Level 2 | . . . 2 Low Security (%) 69 | 100 100 100 56 Level 1 21 | . . . 31 Level 2 8 | . . . 11 Level 3 . | . . . . Level 4 . | . . . . Level 5 . | . . . . High Security . | . . . . Max Security . | . . . . Peak Influence 543 | . 115 61 543 Initial 31 | . . 31 . Average 145 | . 35 25 196 Influence Increases 1351 | . 176 50 1125 Destroy 0b10 Robot/C 880 | . 80 40 760 Destroy 0b10 Robot/NC 110 | . 5 . 105 Destroy Leader 218 | . 10 10 198 Successful Hack 18 | . 6 . 12 Disable Machine 15 | . . . 15 Destroy Structure 5 | . . . 5 Lose Combat Pursuer 105 | . 75 . 30 Influence Decreases 820 | . 95 131 594 Entered New Map 50 | . . 50 . Time Decay 643 | . 95 81 467 Lost Part 90 | . . . 90 Purge Threat 37 | . . . 37 Squads Dispatched 9 | . . . 9 Investigation 2 | . . . 2 Extermination . | . . . . Reinforcement 6 | . . . 6 Assault 1 | . . . 1 Garrison . | . . . . Intercept . | . . . . Searches Triggered . | . . . . Construction Impeded . | . . . . Haulers Reinforced . | . . . . Active Scanning Responses . | . . . . Cargo Convoy Interrupts . | . . . . Stealth | -11 -10 -10 -9 --------- Run | Yrd Mat Min Mat Distress Signals 8 | . 2 . 6 Communications Jammed . | . . . . Distress Signals . | . . . . Times Spotted 82 | . 13 2 67 Peak Tracking Total 6 | . 6 2 6 Tactical Retreats 6 | . 4 . 2 Traps | -11 -10 -10 -9 ------- Run | Yrd Mat Min Mat Traps Triggered 3 | . 1 . 2 Indirectly . | . . . . Trap Hack Attempts . | . . . . Triggered . | . . . . Disarmed . | . . . . Reprogrammed . | . . . . Reused . | . . . . Traps Extracted . | . . . . Installed . | . . . . Triggered . | . . . . Machines | -11 -10 -10 -9 ---------- Run | Yrd Mat Min Mat Machines Disabled 1 | . . . 1 Max in Single Turn 1 | . . . 1 Machines Repaired . | . . . . Machines Dismantled . | . . . . Machines Sabotaged . | . . . . Overloaded Fab Kills . | . . . . Hacking | -11 -10 -10 -9 --------- Run | Yrd Mat Min Mat Machines Accessed 7 | . 4 . 3 Terminals 7 | . 4 . 3 Fabricators . | . . . . Repair Stations . | . . . . Recycling Units . | . . . . Scanalyzers . | . . . . Garrison Access . | . . . . Total Hacks 13 | . 6 . 7 Successful 4 | . 1 . 3 Failed 9 | . 5 . 4 Catastrophic 4 | . 3 . 1 Database Lockouts . | . . . . Manual 14 | . 7 . 7 Terminals 13 | . 6 . 7 Fabricators . | . . . . Repair Stations . | . . . . Recycling Units . | . . . . Scanalyzers . | . . . . Garrison Access . | . . . . Terminal Hacks 1 | . . . 1 Unreport Threat 1 | . . . 1 Fabricator Hacks . | . . . . Repair Station Hacks . | . . . . Recycling Unit Hacks . | . . . . Scanalyzer . | . . . . Garrison Access Hacks . | . . . . Unauthorized Hacks 3 | . 1 . 2 Terminals 3 | . 1 . 2 Assimilate 1 | . . . 1 Operators 2 | . 1 . 1 Fabricators . | . . . . Repair Stations . | . . . . Recycling Units . | . . . . Scanalyzers . | . . . . Garrison Access . | . . . . Data Cores Recovered 2 | . 1 . 1 Used . | . . . . Hacking Detections 6 | . 4 . 2 Full Trace Events . | . . . . Feedback Events . | . . . . Feedback Blocked . | . . . . Robot Schematics Acquired . | . . . . Robots Built . | . . . . Authchips . | . . . . Time . | . . . . Total Robot Build Rating . | . . . . Part Schematics Acquired . | . . . . Parts Built . | . . . . Authchips . | . . . . Time . | . . . . Total Part Build Rating . | . . . . Parts Repaired . | . . . . Time . | . . . . Parts Recycled . | . . . . Recycled Matter . | . . . . Retrieved Matter . | . . . . Retrieved Components . | . . . . Parts Scanalyzed . | . . . . Part Schematics Acquired . | . . . . Parts Damaged . | . . . . Bothacking | -11 -10 -10 -9 ------------ Run | Yrd Mat Min Mat Used RIF Installer . | . . . . Robots Hacked . | . . . . Non-combat . | . . . . Combat . | . . . . Robot Hacks Applied . | . . . . Relay Couplers Released . | . . . . Fabnet Peak Effective % . | . . . . Robots Rewired . | . . . . Allies Hacked . | . . . . Hacks Repelled . | . . . . Allies | -11 -10 -10 -9 -------- Run | Yrd Mat Min Mat Total Allies . | . . . . Largest Group . | . . . . Highest-Rated Group . | . . . . Highest-Rated Ally . | . . . . Total Orders . | . . . . Ally Attacks . | . . . . Total Damage . | . . . . Kills . | . . . . Allies Corrupted . | . . . . Allies Melted . | . . . . Intel | -11 -10 -10 -9 ------- Run | Yrd Mat Min Mat Active Infowar (turns) . | . . . . Robot Analysis Total . | . . . . Derelict Logs Recovered . | . . . . Drone Launches . | . . . . Drone Recoveries . | . . . . Exploration | -11 -10 -10 -9 ------------- Run | Yrd Mat Min Mat Turns Passed 2291 | 116 367 205 1603 Spaces Moved 939 | 77 184 105 573 Core 32 | 29 3 . . Treads 907 | 48 181 105 573 Legs . | . . . . Wheels . | . . . . Hover . | . . . . Flight . | . . . . Fastest Speed 50 | 50 160 160 160 Average Speed 156 | 118 161 160 160 Slowest Speed 250 | 160 250 160 160 Overloaded Moves . | . . . . Propulsion Burnouts . | . . . . Robots Hopped . | . . . . Potential Cave-ins . | . . . . Cave-ins Triggered . | . . . . Exploration Rate (%) 29 | 4 38 26 51 Regions Visited 3 Branch Regions 1 Pre-discovered Areas 1 | . . 1 . Known Exits Taken . | . . . . Unknown Exits Taken 3 | 1 1 1 . Scrap Searched . | . . . . Spaces Dug 1 | . . . 1 Terrain Destroyed 1 | . . . 1 Melee 1 | . . . 1 Projectile . | . . . . AOE . | . . . . Terrain Rammed . | . . . . Walls Destroyed . | . . . . Machines Disabled . | . . . . Actions | -11 -10 -10 -9 --------- Run | Yrd Mat Min Mat Total 1410 | 102 222 126 960 Wait 195 | 10 11 13 161 Move 936 | 76 183 104 573 Hop . | . . . . Pick Up 33 | 10 6 . 17 Fast Attach 7 | . . . 7 Attach 17 | 6 4 . 7 Detach . | . . . . Swap 18 | . . . 18 Drop 20 | . . . 20 Fire 183 | . 18 9 156 Melee 1 | . . . 1 Ram . | . . . . Kick . | . . . . Crush . | . . . . Escape Stasis . | . . . . Rewire . | . . . . Trap . | . . . . Miscellaneous . | . . . . Route ------- -11/Scrapyard -10/Materials (discovered 2 exits: [*Min x2]) -10/Mines -9/Materials (discovered 2 exits: [*Mat] / [*Min]) History --------- Turn | Location | Event 5 | -11/Scrapyard | Discovered new exit (range 15) 117 | -11/Scrapyard | Entered Materials 198 | -10/Materials | Discovered new exit (range 5) 245 | -10/Materials | Discovered new exit (range 10) 308 | -10/Materials | Build established: Mutant 484 | -10/Materials | Entered Mines 567 | -10/Mines | Learned location of Storage (-9) 665 | -10/Mines | Discovered new exit (range 11) 689 | -10/Mines | Entered Materials 689 | -9/Materials | Evolved 2 slots: Propulsion x1, Utility x1 1387 | -9/Materials | Discovered new exit (range 16) 1559 | -9/Materials | Discovered new exit (range 3) 1597 | -9/Materials | Core integrity fell below 50% 1658 | -9/Materials | Lost 6 parts (2n1u3w) 1856 | -9/Materials | Core integrity fell below 20% 2289 | -9/Materials | First assault squad dispatched 2292 | -9/Materials | Self-destructed Last Messages --------------- Dropped Lgt. Treads. S-10 Pest destroyed. Acquired 16 matter. Dropped Lgt. Treads. K-01 Serf collects debris. C-30 ARC bursts open, deploying its payload. S-10 Pest unfolds itself. S-10 Pest destroyed. K-01 Serf collects debris. S-10 Pest destroyed. K-01 Serf collects debris. Hvy. Assault Rifle destroyed. ALERT: Unidentified disturbance in Zone 2N, assault force dispatched. K-01 Serf collects debris. C-30 ARC bursts open, deploying its payload. G-47 Trooper unfolds itself. B-36 Bruiser unfolds itself. M-13 Machinist unfolds itself. K-01 Serf collects debris. Map ----- +----------------------------------------------------+ | ????????????# ?#===#??????????????# | | ????????????# """?# = #??????????????# | | ????????????# """ # #??????????????##+#### | | ????????????#[ """ # * #????????????????????? | | ????????????# +/%=#????????????????????? | | ????????????# # #????????????????????? | | ????????????######## * #????????????????????? | | ????????????# # #????????????????????? | | ????????????# # #??#######???????????? | | ????????????# + "#?""" #???????????? | | ????????????# #%=%#?"T" #???????????? | | ????????????# #[=%# #???????????? | | ????????????# ?# s # #???????????? | | ????????????######?# ; " #???????????? | | ???????????????????#=%[# " #???????????? | | ???????????????????# * # [ #???????????? | | ???????????????????# #? #???????????? | | ???????????????????# #? #???????????? | | ???????????????????# #??#######???????????? | | ???????????????????# #????????????????????? | | ???????????????????# #????????????????????? | | ???????????????????# #????????????????????? | | ???????????????????# #????????????????????? | | ???????????????????# =[#????????????????????? | | ???????????????????#=[]#????????????????????? | | ???????????????????#@]%#????????????????????? | | ???????????????????# []#????????????????????? | | ???????????######### k!#????????????????????? | | ?????????# /m #????????????????????? | | ?????????# # #????????????????????? | | ?????????# """ ] # #????????????????????? | | ?????????? """ ?# #????????????????????? | | ????????? """ """ # #????????????????????? | | ?????????# R" # +????????????????????? | | ?????????# """ +b m#????????????????????? | | ?????????#! # b[#????????????????????? | | ?????????###########gbm#????????????????????? | | ??????????????????? [=#????????????????????? | | ??????????????????? #????????????????????? | | ?????????????????? #????????????????????? | | ??????????????????##;###????????????????????? | | ??????????????????? ??????????????????????? | | ??????????????????? ""??????????????????????? | | ??????????????????? ""??????????????????????? | | ??????????????????? ""??????????????????????? | | ??????????????????? ????????????????????????? | | ??????????????????? ????????????????????????? | | ???????????????????#????????????????????????? | | | | | +----------------------------------------------------+ Best States ------------- Heat Dissipation 28 Energy Generation 14 Energy Capacity 280 Matter Stores 300 Matter Capacity 300 Sight Range 16 Terrain Scan Density 10 Armor Coverage 300 Weapon Shielding 33 Evasion (%) 50 Recoil Reduction 3 Offensive Hacking 10 Item Schematics ----------------- None Robot Schematics ------------------ None Fabricated ------------ Nothing Repaired ---------- Nothing Alien Tech Used ----------------- None Achievements -------------- None Challenges ------------ None Game ------ Seed RainbowImprinterProtomatter Manual? 0 Play Time 00:18:28 Cumulative 154.8 hours Start 2025.08.29 @ 21:03:46 End 2025.08.29 @ 21:21:49 Sessions 1 Manual Loads 0 Difficulty Rogue Special Mode None Game No. 137 Rogue 137 Adventurer 0 Explorer 0 Win Type - Total 7 Types 2/0/2/2/0/0/0/0/0/1 Lore% 84 Gallery% 80 Achievement% 60 Wizard Run 0 Options --------- Layout 1 ASCII 0 Keyboard 0 Movement Numpad Keybinds 0 Fullscreen 1 Font 24/Proggy Map View 50x35 Zoom Use 0% Tactical HUD 0 Map Filters NONE Filters NONE Steam 1 RUN: 8221bbae-9593-44f3-a9e2-0c745e06bb45